fUST/lending_fUST_20260123
["ID","MTS","AMOUNT","RATE_DAILY","PERIOD"]
[403096249,1769154639195,-500.0,0.00013273,2]
[403096250,1769154639205,-500.0,0.00013273,2]
[403096251,1769154639214,-500.0,0.00013273,2]
[403096252,1769154639224,-500.65981209,0.00013273,2]
[403096253,1769154639234,-502.20217162,0.00013273,2]
[403096254,1769154639251,-500.0,0.00013273,2]
[403096255,1769154639260,-500.0,0.00013273,2]
[403096256,1769154639269,-501.50342161,0.00013273,2]
[403096257,1769154639279,-500.0,0.00013273,2]
[403096258,1769154639289,-500.0,0.00013273,2]
[403096259,1769154639298,-500.0,0.00013273,2]
[403096260,1769154639307,-500.0,0.00013273,2]
[403096261,1769154639316,-500.99289278,0.00013273,2]
[403096262,1769154639325,-500.0,0.00013273,2]
[403096263,1769154639334,-500.0,0.00013273,2]
[403096264,1769154639343,-500.0,0.00013273,2]
[403096265,1769154639353,-500.0,0.00013273,2]
[403096266,1769154639362,-500.0,0.00013273,2]
[403096267,1769154639371,-500.0,0.00013273,2]
[403096268,1769154639381,-500.0,0.00013273,2]
[403096269,1769154639390,-217.47815878,0.00013273,2]
[403096270,1769154639399,-500.0,0.00013273,2]
[403096271,1769154639409,-500.0,0.00013273,2]
[403096272,1769154639418,-500.0,0.00013273,2]
[403096273,1769154639427,-502.31062213,0.00013273,2]
[403096274,1769154639437,-500.0,0.00013273,2]
[403096275,1769154639446,-171.93433816,0.00013273,2]
[403096276,1769154639455,-159.63525752,0.00013273,2]
[403096277,1769154639465,-269.22730713,0.00013273,2]
[403096278,1769154639474,-502.05000252,0.00013273,2]
[403096279,1769154639483,-500.0,0.00013273,2]
[403096280,1769154639492,-500.0,0.00013273,2]
[403096281,1769154639501,-500.0,0.00013273,2]
[403096282,1769154639511,-500.0,0.00013273,2]
[403096283,1769154639520,-500.0,0.00013273,2]
[403096284,1769154639529,-500.15361623,0.00013273,2]
[403096285,1769154639539,-500.0,0.00013273,2]
[403096286,1769154639548,-500.0,0.00013273,2]
[403096287,1769154639558,-500.0,0.00013273,2]
[403096288,1769154639568,-315.65928107,0.00013273,2]
[403096289,1769154639578,-500.0,0.00013273,2]
[403096290,1769154639587,-500.0,0.00013273,2]
[403096291,1769154639596,-500.0,0.00013273,2]
[403096292,1769154639606,-500.0,0.00013273,2]
[403096293,1769154639615,-500.0,0.00013273,2]
[403096294,1769154639624,-232.86562052,0.00013273,2]
[403096296,1769154639634,-500.0,0.00013273,2]
[403096297,1769154639643,-500.0,0.00013273,2]
[403096298,1769154639653,-502.04598716,0.00013273,2]
[403096299,1769154639663,-619.17894952,0.00013273,2]
[403096300,1769154639672,-500.0,0.00013273,2]
[403096301,1769154639681,-1115.69,0.00013514,2]
[403096302,1769154639690,-300.0,0.00013673,2]
[403096303,1769154639699,-17403.2732105,0.00013699,2]
[403096304,1769154639708,-188.34576153,0.00013699,2]
[403096305,1769154639718,-500.0,0.00013821,2]
[403096306,1769154639727,-500.0,0.00013821,2]
[403096308,1769154639737,-230.91239084,0.00013821,2]
[403096310,1769154639746,-817.82070122,0.00013821,2]
[403096311,1769154639756,-500.0,0.00013821,2]
[403096312,1769154639765,-550.49216914,0.00013821,2]
[403096313,1769154639774,-500.0,0.00013821,2]
[403096314,1769154639783,-1000.0,0.00013821,2]
[403096315,1769154639793,-500.0,0.00013821,2]
[403096316,1769154639802,-1000.0,0.00013821,2]
[403096317,1769154639811,-500.0,0.00013821,2]
[403096318,1769154639821,-1000.0,0.00013821,2]
[403096319,1769154639830,-500.0,0.00013821,2]
[403096320,1769154639840,-500.0,0.00013821,2]
[403096321,1769154639850,-1000.0,0.00013821,2]
[403096322,1769154639859,-1000.0,0.00013821,2]
[403096323,1769154639874,-1000.0,0.00013821,2]
[403096324,1769154639883,-762.11903055,0.00013821,2]
[403096325,1769154639892,-1000.0,0.00013821,2]
[403096326,1769154639902,-1000.0,0.00013821,2]
[403096327,1769154639911,-196.66350316,0.00013821,2]
[403096328,1769154639925,-713.07896543,0.00013821,2]
[403096329,1769154639934,-1000.0,0.00013821,2]
[403096330,1769154639943,-1000.0,0.00013821,2]
[403096331,1769154639953,-500.0,0.00013821,2]
[403096332,1769154639965,-500.0,0.00013821,2]
[403096333,1769154639975,-251.17154645,0.00013821,2]
[403096429,1769154640955,-3e-08,0.00013821,2]
[403096739,1769154646215,-5000.0,0.00013682,2]
[403096740,1769154646224,-748.82845352,0.00013821,2]
[403096741,1769154646234,-500.74636388,0.00013821,2]
[403096742,1769154646243,-1002.18038779,0.00013821,2]
[403096743,1769154646252,-1000.0,0.00013821,2]
[403096744,1769154646262,-638.91290309,0.00013821,2]
[403096745,1769154646271,-1000.0,0.00013821,2]
[403096746,1769154646280,-1000.0,0.00013821,2]
[403096747,1769154646289,-600.0,0.00014221,2]
[403096748,1769154646299,-226.8051087,0.0001425,2]
[403096749,1769154646312,-1255.15,0.00014265,2]
[403096750,1769154646323,-221.33913174,0.00014368,2]
[403096751,1769154646335,-818.75825438,0.00014368,2]
[403096752,1769154646346,-1500.0,0.00014368,2]
[403096753,1769154646358,-1500.0,0.00014368,2]
[403096754,1769154646370,-701.81951638,0.00014368,2]
[403096755,1769154646382,-1500.0,0.00014368,2]
[403096756,1769154646392,-1500.0,0.00014368,2]
[403096757,1769154646402,-1500.0,0.00014368,2]
[403096758,1769154646414,-500.0,0.00014368,2]
[403096759,1769154646427,-1500.0,0.00014368,2]
[403096760,1769154646440,-1500.0,0.00014368,2]
[403096761,1769154646451,-1500.0,0.00014368,2]
[403096762,1769154646463,-900.0,0.00014768,2]
[403096763,1769154646474,-657.15125967,0.00014916,2]
[403096764,1769154646485,-295.75719017,0.00014916,2]
[403096765,1769154646497,-2000.0,0.00014916,2]
[403096766,1769154646508,-1000.0,0.00014916,2]
[403096767,1769154646520,-2000.0,0.00014916,2]
[403096768,1769154646531,-500.0,0.00014916,2]
[403096769,1769154646543,-727.06675913,0.00015,2]
[403096770,1769154646555,-705.13389678,0.00015016,2]
[403096771,1769154694348,221.77,9.11e-05,2]
[403096772,1769154694786,295.69,9.811e-05,2]
[403096773,1769154695459,369.61,0.00010512,2]
[403096774,1769154695853,443.53,0.00011213,2]
[403096775,1769154696272,517.46,0.00011913,2]
[403096776,1769154769006,182.3,9.11e-05,2]
[403096777,1769154769411,243.06,9.811e-05,2]
[403096778,1769154769856,303.83,0.00010512,2]
[403096779,1769154770285,364.59,0.00011213,2]
[403096780,1769154770696,425.36,0.00011913,2]
[403096782,1769154842932,168.73,0.00010108,2]
[403096783,1769154843350,224.98,0.00010886,2]
[403096784,1769154843758,281.22,0.00011663,2]
[403096785,1769154915665,178.7,0.00010988,2]
[403096786,1769154916082,238.26,0.00011833,2]
[403096790,1769154971134,170.7390773,0.00011523,2]
[403096791,1769154972280,1294.0110924,0.00011523,2]
[403096797,1769154989534,22.91585794,0.00010949,2]
[403096798,1769154989611,139.86414206,0.00010949,2]
[403096799,1769154989970,217.03,0.00011791,2]
[403096801,1769154992328,500.0,0.00011998,2]
[403096803,1769155042914,5000.0,0.00011998,2]
[403096804,1769155050904,4143.11585794,0.00011998,2]
[403096805,1769155050985,856.88414206,0.00011998,2]
[403096806,1769155063326,197.7,0.00011799,2]
[403096807,1769155074001,5000.0,0.00011998,2]
[403096814,1769155095991,2402.84306453,0.00011998,2]
[403096833,1769155138303,150.0,0.00010952,2]
[403096834,1769155138724,187.63,0.00011795,2]
[403096835,1769155166228,-261.98346765,0.00012192,2]
[403096836,1769155167622,-1225.1274165,0.00012192,2]
[403096837,1769155177043,-419.66449406,0.00012192,2]
[403096838,1769155179207,-330.10752351,0.00012192,2]
[403096839,1769155182068,648.29766761,0.00012072,2]
[403096840,1769155185790,-2448.55363716,0.00012192,2]
[403096841,1769155197221,5000.0,0.00012192,2]
[403096842,1769155198909,-187.09040798,0.00012253,2]
[403096843,1769155204281,500.0,0.00012253,2]
[403096844,1769155204627,500.0,0.00012253,2]
[403096845,1769155204996,500.0,0.00012253,2]
[403096846,1769155205345,500.0,0.00012253,2]
[403096847,1769155211827,150.0,9.381e-05,2]
[403096848,1769155212875,170.44,0.00011939,2]
[403096849,1769155214842,-1165.0,0.00012313,2]
[403096850,1769155220559,1090.21382486,0.00012313,2]
[403096851,1769155221266,399.18099019,0.00012214,2]
[403096852,1769155230651,-300.0,0.00012314,2]
[403096853,1769155230742,-300.0,0.00012314,2]
[403096854,1769155230821,-300.0,0.00012314,2]
[403096855,1769155230898,-300.0,0.00012314,2]
[403096856,1769155231000,-594.0,0.00012314,2]
[403096857,1769155239455,442.41756305,0.00012314,2]
[403096858,1769155240893,500.0,0.00012314,2]
[403096859,1769155240981,500.0,0.00012314,2]
[403096860,1769155241073,500.0,0.00012314,2]
[403096861,1769155241159,500.0,0.00012314,2]
[403096862,1769155241249,500.0,0.00012314,2]
[403096863,1769155241341,500.0,0.00012314,2]
[403096864,1769155241429,500.0,0.00012314,2]
[403096865,1769155241517,500.0,0.00012314,2]
[403096866,1769155241599,500.0,0.00012314,2]
[403096867,1769155241689,500.0,0.00012314,2]
[403096868,1769155241769,500.0,0.00012314,2]
[403096869,1769155241849,469.59243695,0.00012314,2]
[403096870,1769155241927,30.40756305,0.00012314,2]
[403096871,1769155242010,500.0,0.00012314,2]
[403096872,1769155242099,500.0,0.00012314,2]
[403096873,1769155242186,500.0,0.00012314,2]
[403096874,1769155242287,500.0,0.00012314,2]
[403096875,1769155242372,500.0,0.00012314,2]
[403096876,1769155242453,500.0,0.00012314,2]
[403096877,1769155242535,500.0,0.00012314,2]
[403096878,1769155242618,500.0,0.00012314,2]
[403096879,1769155242697,500.0,0.00012314,2]
[403096880,1769155242781,500.0,0.00012314,2]
[403096881,1769155242859,500.0,0.00012314,2]
[403096882,1769155242950,500.0,0.00012314,2]
[403096883,1769155243040,500.0,0.00012314,2]
[403096884,1769155243115,500.0,0.00012314,2]
[403096885,1769155243198,500.0,0.00012314,2]
[403096886,1769155243300,306.29214885,0.00012314,2]
[403096887,1769155243382,500.0,0.00012314,2]
[403096888,1769155243459,500.0,0.00012314,2]
[403096889,1769155243538,500.0,0.00012314,2]
[403096890,1769155243624,500.0,0.00012314,2]
[403096891,1769155243705,163.3102881,0.00012314,2]
[403096892,1769155243780,336.6897119,0.00012314,2]
[403096900,1769155261362,500.0,0.00012314,2]
[403096901,1769155261435,226.15158286,0.00012314,2]
[403096902,1769155261506,500.0,0.00012314,2]
[403096903,1769155261582,500.0,0.00012314,2]
[403096904,1769155261653,500.0,0.00012314,2]
[403096905,1769155261727,500.0,0.00012314,2]
[403096906,1769155261797,500.0,0.00012314,2]
[403096907,1769155261880,334.57034799,0.00012314,2]
[403096908,1769155261958,500.0,0.00012314,2]
[403096909,1769155262050,500.0,0.00012314,2]
[403096910,1769155262134,500.0,0.00012314,2]
[403096911,1769155262214,500.0,0.00012314,2]
[403096912,1769155262286,500.0,0.00012314,2]
[403096913,1769155262361,500.0,0.00012314,2]
[403096914,1769155262438,500.0,0.00012314,2]
[403096915,1769155262519,500.0,0.00012314,2]
[403096916,1769155262595,500.0,0.00012314,2]
[403096917,1769155262977,500.0,0.00012314,2]
[403096918,1769155263067,500.0,0.00012314,2]
[403096919,1769155263160,500.0,0.00012314,2]
[403096920,1769155263241,439.28806915,0.00012314,2]
[403096921,1769155263337,60.71193085,0.00012314,2]
[403096922,1769155263443,500.0,0.00012314,2]
[403096923,1769155263524,500.0,0.00012314,2]
[403096924,1769155263610,307.89290517,0.00012314,2]
[403096925,1769155263693,226.8235041,0.00012314,2]
[403096926,1769155263785,300.0,0.00012313,2]
[403096927,1769155263868,-300.0,0.00012703,2]
[403096928,1769155263962,-300.0,0.00012703,2]
[403096929,1769155264047,-300.0,0.00012703,2]
[403096930,1769155264127,-300.0,0.00012703,2]
[403096931,1769155264221,-300.0,0.00012703,2]
[403096933,1769155264307,-300.0,0.00012703,2]
[403096934,1769155264391,-300.0,0.00012703,2]
[403096935,1769155264481,-300.0,0.00012703,2]
[403096936,1769155264566,-300.0,0.00012703,2]
[403096937,1769155264658,-300.0,0.00012703,2]
[403096938,1769155264746,-300.0,0.00012703,2]
[403096939,1769155264822,-300.0,0.00012703,2]
[403096940,1769155264901,-300.0,0.00012703,2]
[403096941,1769155264991,-300.0,0.00012703,2]
[403096942,1769155265078,-300.0,0.00012703,2]
[403096943,1769155265203,500.0,0.00012314,2]
[403096944,1769155265298,500.0,0.00012314,2]
[403096945,1769155265398,0.01,0.00012314,2]
[403096946,1769155265490,499.99,0.00012314,2]
[403096947,1769155265586,500.0,0.00012314,2]
[403096948,1769155265763,500.0,0.00012314,2]
[403096951,1769155265939,500.0,0.00012314,2]
[403096952,1769155266032,500.0,0.00012314,2]
[403096953,1769155266265,500.0,0.00012314,2]
[403096954,1769155266395,500.0,0.00012314,2]
[403096955,1769155266562,500.0,0.00012314,2]
[403096956,1769155266756,500.0,0.00012314,2]
[403096957,1769155266843,500.0,0.00012314,2]
[403096958,1769155267079,500.0,0.00012314,2]
[403096959,1769155267299,500.0,0.00012314,2]
[403096960,1769155267392,500.0,0.00012314,2]
[403096961,1769155267576,500.0,0.00012314,2]
[403096962,1769155267868,500.0,0.00012314,2]
[403096963,1769155267958,500.0,0.00012314,2]
[403096969,1769155278574,-213.06,0.00012792,2]
[403096974,1769155283928,150.0,9.591e-05,2]
[403096975,1769155284374,150.0,0.00010463,2]
[403096976,1769155284798,150.0,0.00011335,2]
[403096980,1769155287880,150.0,0.00012207,2]
[403096984,1769155294180,-4302.00357488,0.000129,2]
[403096992,1769155332308,414.09150045,0.00012314,2]
[403096993,1769155362928,150.0,9.573e-05,2]
[403096994,1769155363332,150.0,0.00010443,2]
[403096995,1769155363751,150.0,0.00011313,2]
[403096996,1769155364161,150.0,0.00012184,2]
[403096999,1769155434853,150.0,9.561e-05,2]
[403097000,1769155435271,150.0,0.0001043,2]
[403097001,1769155435709,150.0,0.00011299,2]
[403097002,1769155436157,150.0,0.00012168,2]
[403097003,1769155503324,150.0,9.53e-05,2]
[403097004,1769155504244,150.0,0.00010397,2]
[403097005,1769155504333,150.0,0.00011263,2]
[403097009,1769155635388,150.0,0.00012128,2]
[403097010,1769155682149,300.0,0.00012554,2]
[403097011,1769155699768,150.0,9.529e-05,2]
[403097163,1769155838233,-600.0,0.00012956,2]
[403097165,1769155838242,-604.0,0.00012956,2]
[403097167,1769155838251,-187.13236837,0.0001298,2]
[403097169,1769155838260,-300.0,0.00013272,2]
[403097171,1769155838269,-500.0,0.00013273,2]
[403097173,1769155838278,-500.0,0.00013273,2]
[403097175,1769155838287,-471.5417581,0.00013273,2]
[403097177,1769155838295,-500.0,0.00013273,2]
[403097178,1769155838304,-500.0,0.00013273,2]
[403097180,1769155838313,-500.0,0.00013273,2]
[403097182,1769155838323,-500.0,0.00013273,2]
[403097184,1769155838332,-500.0,0.00013273,2]
[403097186,1769155838341,-500.0,0.00013273,2]
[403097188,1769155838350,-500.0,0.00013273,2]
[403097190,1769155838359,-500.0,0.00013273,2]
[403097192,1769155838369,-500.0,0.00013273,2]
[403097194,1769155838379,-500.0,0.00013273,2]
[403097196,1769155838388,-3764.25312802,0.00013572,2]
[403097198,1769155838397,-32060.98229084,0.00013598,2]
[403097200,1769155838409,-70018.33773531,0.00013598,2]
[403097202,1769155838419,-500.0,0.00013672,2]
[403097204,1769155838430,-500.0,0.00013672,2]
[403097206,1769155838441,-203.84114978,0.00013672,2]
[403097208,1769155838455,-500.0,0.00013672,2]
[403097210,1769155838465,-500.0,0.00013672,2]
[403097212,1769155838475,-530.62921489,0.00013672,2]
[403097214,1769155838485,-300.0,0.00013673,2]
[403097216,1769155838494,-15613.00875612,0.00013673,2]
[403097218,1769155838506,-4971.11304703,0.00013673,2]
[403097220,1769155838519,-8858.38237819,0.00013673,2]
[403097223,1769155838533,-10521.17056281,0.00013673,2]
[403097225,1769155838544,-3922.16002755,0.00013673,2]
[403097227,1769155838555,-1842.95505644,0.00013673,2]
[403097229,1769155838566,-418.49770858,0.00013673,2]
[403097232,1769155838585,-1680.12542679,0.00013673,2]
[403097425,1769155840402,-2172.58703649,0.00013673,2]
[403097427,1769155840412,-217.163,0.00013673,2]
[403097430,1769155840422,-309.69229414,0.00013697,2]
[403097432,1769155840432,-748.0282664,0.00013699,2]
[403097434,1769155840442,-220.160232,0.00013699,2]
[403097436,1769155840454,-500.0,0.00013699,2]
[403097438,1769155840463,-500.0,0.00013699,2]
[403097440,1769155840472,-500.0,0.00013699,2]
[403097442,1769155840481,-187.74085301,0.00013699,2]
[403097444,1769155840490,-297.94773281,0.00013699,2]
[403097446,1769155840499,-548.47444081,0.00013699,2]
[403097448,1769155840509,-70.58133779,0.00013699,2]
[403097450,1769155840521,-429.41866221,0.00013699,2]
[403097452,1769155840530,-96.88345786,0.00013699,2]
[403097453,1769155840542,-404.16322991,0.00013699,2]
[403097454,1769155840551,-500.0,0.00013699,2]
[403097455,1769155840560,-543.21787469,0.00013699,2]
[403097456,1769155840570,-531.9506174,0.00013699,2]
[403097457,1769155840580,-619.77328935,0.00013699,2]
[403097458,1769155840589,-1000.0,0.00013821,2]
[403097459,1769155840598,-1000.0,0.00013821,2]
[403097460,1769155840607,-500.0,0.00013821,2]
[403097461,1769155840617,-349.95296507,0.00013821,2]
[403097462,1769155840626,-1000.0,0.00013821,2]
[403097463,1769155840636,-1000.0,0.00013821,2]
[403097464,1769155840645,-1000.0,0.00013821,2]
[403097465,1769155840655,-641.67631697,0.00013821,2]
[403097466,1769155840664,-500.0,0.00013821,2]
[403097467,1769155840674,-600.0,0.00014221,2]
[403097468,1769155840684,-250.0,0.00014227,2]
[403097469,1769155840694,-500.0,0.00014247,2]
[403097470,1769155840703,-500.0,0.00014247,2]
[403097471,1769155840713,-1000.0,0.00014247,2]
[403097472,1769155840723,-720.0,0.00014252,2]
[403097473,1769155840732,-1500.0,0.00014368,2]
[403097474,1769155840742,-607.80507894,0.00014368,2]
[403097475,1769155840752,-222.98446426,0.00014368,2]
[403097476,1769155840761,-1509.41771622,0.00014368,2]
[403097477,1769155840770,-924.35602029,0.00014368,2]
[403097478,1769155840779,-420.0,0.00014551,2]
[403097479,1769155840789,-7851.3420078,0.00014646,2]
[403097480,1769155840798,-900.0,0.00014768,2]
[403097481,1769155840807,-14470.31468608,0.00014786,2]
[403097482,1769155840819,-1090.03013454,0.00014786,2]
[403097574,1769155843440,-10715.0615411,0.00014786,2]
[403097586,1769155846136,-3724.59363828,0.00014786,2]
[403097588,1769155846146,-461.67526834,0.00014786,2]
[403097589,1769155846156,-2230.315306,0.00014786,2]
[403097591,1769155846165,-1000.0,0.00014795,2]
[403097593,1769155846175,-2000.0,0.00014916,2]
[403097594,1769155846184,-220.81619467,0.0001498,2]
[403097595,1769155846195,-282.483719,0.00015068,2]
[403097596,1769155846204,-10339.63406162,0.00015236,2]
[403097597,1769155846216,-8695.74098176,0.00015236,2]
[403097598,1769155846227,-7199.33428489,0.00015236,2]
[403097608,1769155971987,1205.0,0.000129,2]
[403097650,1769156093322,150.0,9.761e-05,2]
[403097673,1769156157978,150.0,7.706e-05,2]
[403097695,1769156236209,3362.37997149,0.00012906,2]
[403097721,1769156324432,228.7,0.00012329,2]
[403097726,1769156334690,190.59,0.00012329,2]
[403097732,1769156345097,158.82,0.00012329,2]
[403097735,1769156355712,794.13,0.00012329,2]
[403097869,1769156887334,1096.29852806,0.000125,2]
[403097870,1769156887427,2427.75055979,0.000125,2]
[403097921,1769157032223,-225.62546832,0.00013172,2]
[403097923,1769157032232,-300.0,0.00013172,2]
[403097925,1769157032242,-300.0,0.00013172,2]
[403097927,1769157032251,-1200.0,0.00013172,2]
[403097928,1769157032261,-178.9733971,0.00013172,2]
[403097930,1769157032270,-64636.74698892,0.00013173,2]
[403097932,1769157032280,-4240.77,0.00013173,30]
[403097934,1769157032289,-3293.721487,0.00013173,2]
[403097936,1769157032298,-299.29191083,0.00013272,2]
[403097937,1769157032308,-173.731,0.00013272,2]
[403097938,1769157032317,-550.18892411,0.00013273,2]
[403097939,1769157032327,-500.0,0.00013273,2]
[403097940,1769157032337,-500.0,0.00013273,2]
[403097941,1769157032346,-500.0,0.00013273,2]
[403097942,1769157032356,-500.0,0.00013273,2]
[403097944,1769157032365,-618.83952097,0.00013273,2]
[403097946,1769157032374,-500.0,0.00013273,2]
[403097947,1769157032383,-500.0,0.00013273,2]
[403097949,1769157032392,-500.0,0.00013273,2]
[403097951,1769157032402,-30000.0,0.00013393,2]
[403097952,1769157032411,-151.0,0.000134,2]
[403097953,1769157032420,-151.0,0.000134,2]
[403097954,1769157032430,-151.0,0.000134,2]
[403097955,1769157032439,-461.67526834,0.00013489,2]
[403097956,1769157032449,-2230.315306,0.00013489,2]
[403097957,1769157032458,-151.0,0.00013489,2]
[403097958,1769157032468,-190.88320984,0.00013489,2]
[403097959,1769157032478,-487.0,0.00013498,2]
[403097960,1769157032486,-487.0,0.00013498,2]
[403097961,1769157032496,-487.0,0.00013498,2]
[403097962,1769157032505,-487.0,0.00013498,2]
[403097963,1769157032514,-487.0,0.00013498,2]
[403097964,1769157032523,-494.7,0.00013498,2]
[403097965,1769157032533,-151.0,0.000135,2]
[403097966,1769157032542,-151.0,0.000135,2]
[403097967,1769157032551,-300.0,0.00013673,2]
[403097968,1769157032560,-1000.0,0.00013699,2]
[403097969,1769157032570,-332.37406324,0.00013699,2]
[403097970,1769157032579,-503.70323317,0.00013699,2]
[403097971,1769157032589,-1000.0,0.00013821,2]
[403097972,1769157032598,-1000.9366246,0.00013821,2]
[403097973,1769157032609,-278.9945069,0.00013939,2]
[403097974,1769157032619,-31110.0,0.00013941,2]
[403097975,1769157032628,-17013.95839944,0.00014018,2]
[403097976,1769157032641,-347.30916476,0.00014018,2]
[403097977,1769157032653,-288.20012239,0.00014018,2]
[403098003,1769157038216,-2500.38270243,0.00014018,2]
[403098004,1769157038227,-2787.66697875,0.00014018,2]
[403098005,1769157038318,-8063.06227663,0.00014018,2]
[403098007,1769157038329,-478.75725327,0.00014037,2]
[403098009,1769157038339,-2312.83697232,0.00014037,2]
[403098011,1769157038348,-600.0,0.00014221,2]
[403098012,1769157038358,-1194.62667464,0.00014368,2]
[403098014,1769157038367,-1273.91910872,0.00014489,2]
[403098016,1769157038378,-26681.16170802,0.00014489,2]
[403098265,1769157043404,-435.015,0.00014489,2]
[403098266,1769157043415,-535.11118749,0.00014489,2]
[403098274,1769157046471,-2736.66536092,0.00014489,2]
[403098290,1769157116396,150.0,8.048e-05,2]
[403098291,1769157116836,150.0,8.779e-05,2]
[403098293,1769157117239,150.0,9.511e-05,2]
[403098294,1769157117661,150.0,0.00010242,2]
[403098295,1769157118095,150.0,0.00010974,2]
[403098296,1769157118523,150.0,0.00011706,2]
[403098297,1769157118936,150.0,0.00012437,2]
[403098327,1769157146362,-150.0,0.00013169,2]
[403098328,1769157146445,-300.0,0.00013172,2]
[403098330,1769157149954,151.0,0.00013,2]
[403098331,1769157150224,151.0,0.000128,2]
[403098332,1769157150510,151.0,0.000126,2]
[403098333,1769157150823,151.0,0.000124,2]
[403098334,1769157151224,151.0,0.000121,2]
[403098335,1769157151544,151.0,0.000119,2]
[403098336,1769157151830,151.0,0.000117,2]
[403098337,1769157152102,151.0,0.000115,2]
[403098338,1769157152381,151.0,0.000112,2]
[403098339,1769157152684,151.0,0.00011,2]
[403098354,1769157192988,244.05,0.000131,2]
[403098362,1769157227401,289.7503684,0.00013172,2]
[403098363,1769157233409,500.0,0.00013172,2]
[403098364,1769157233494,500.0,0.00013172,2]
[403098365,1769157233580,500.0,0.00013172,2]
[403098366,1769157233669,500.0,0.00013172,2]
[403098367,1769157233749,475.57493413,0.00013172,2]
[403098368,1769157233831,500.0,0.00013172,2]
[403098369,1769157233915,500.0,0.00013172,2]
[403098370,1769157255698,2646.9011257,0.00013173,2]
[403098374,1769157264892,933.73357177,0.00013173,2]
[403098375,1769157264965,4066.26642823,0.00013173,2]
[403098378,1769157274691,-4087.84425497,0.00013173,2]
[403098379,1769157274774,-10000.01,0.00013173,2]
[403098380,1769157275001,-10000.01,0.00013173,2]
[403098381,1769157275428,-10000.01,0.00013173,2]
[403098382,1769157275665,-10000.01,0.00013173,2]
[403098383,1769157275878,-10000.01,0.00013173,2]
[403098384,1769157276145,-10000.01,0.00013173,2]
[403098385,1769157276449,-10000.01,0.00013173,2]
[403098386,1769157280203,-10000.01,0.00013173,2]
[403098387,1769157280406,-10000.01,0.00013173,2]
[403098388,1769157286727,-10000.01,0.00013173,2]
[403098389,1769157286849,-10000.01,0.00013173,2]
[403098390,1769157287007,-10000.01,0.00013173,2]
[403098391,1769157287143,-10000.01,0.00013173,2]
[403098392,1769157287287,-10000.01,0.00013173,2]
[403098393,1769157287437,-10000.01,0.00013173,2]
[403098394,1769157287586,-10000.01,0.00013173,2]
[403098395,1769157310760,150.0,7.898e-05,2]
[403098396,1769157311149,150.0,8.616e-05,2]
[403098397,1769157311538,150.0,9.334e-05,2]
[403098398,1769157311935,150.0,0.00010052,2]
[403098399,1769157312598,150.0,0.0001077,2]
[403098400,1769157312746,150.0,0.00011488,2]
[403098404,1769157474767,9100.01,0.00012146,2]
[403098405,1769157474789,1660.7895524,0.00012146,2]
[403098407,1769157480135,2885.65631954,0.00012801,2]
[403098409,1769157508167,5453.56412806,0.00012,2]